fUSD/lending_fUSD_20240625
["ID","MTS","AMOUNT","RATE_DAILY","PERIOD"]
[330415480,1719357040543,-151.92007356,0.00022403,2]
[330415481,1719357040552,-388.72473332,0.00022405,2]
[330415482,1719357040562,-154.75344803,0.00022449,2]
[330415483,1719357040572,-1147.64252741,0.00022468,2]
[330415484,1719357040582,-256.2315395,0.00022472,2]
[330415485,1719357040591,-171.41014845,0.00022506,2]
[330415486,1719357040601,-256.00974718,0.00022507,2]
[330415487,1719357040610,-4390.34953187,0.0002252,2]
[330415488,1719357040619,-179.29478944,0.00022526,2]
[330415489,1719357040629,-584.59494888,0.00022549,2]
[330415490,1719357040639,-423.79,0.00022598,2]
[330415491,1719357040649,-527.79,0.00022598,2]
[330415492,1719357040659,-527.79,0.00022598,2]
[330415493,1719357040669,-423.79,0.00022598,2]
[330415494,1719357040679,-150.97304623,0.000226,2]
[330415495,1719357040688,-520.06850352,0.00022602,2]
[330415496,1719357040698,-1093.26394368,0.00022603,2]
[330415497,1719357040707,-7281.02028471,0.0002263,3]
[330415498,1719357040716,-2103.36686,0.0002264,2]
[330415499,1719357040726,-4151.67304172,0.00022643,2]
[330415500,1719357040735,-150.97008216,0.00022662,2]
[330415501,1719357040745,-166.66666666,0.00022672,2]
[330415502,1719357040755,-1579.79346687,0.00022699,2]
[330415503,1719357040764,-1147.64252741,0.000227,2]
[330415504,1719357040773,-584.59494888,0.00022719,2]
[330415505,1719357040782,-388.72473332,0.00022724,2]
[330415506,1719357040792,-151.92007356,0.00022767,2]
[330415507,1719357040801,-388.72473332,0.00022768,2]
[330415508,1719357040811,-206.44790114,0.00022782,2]
[330415509,1719357040820,-212.80519448,0.00022788,2]
[330415510,1719357040829,-7281.02028471,0.0002279,3]
[330415511,1719357040839,-155.177234,0.00022795,2]
[330415512,1719357040848,-242.15293886,0.00022799,2]
[330415513,1719357040857,-2000.0,0.000228,2]
[330415514,1719357040867,-2000.0,0.000228,2]
[330415515,1719357040877,-2000.0,0.000228,2]
[330415516,1719357040886,-1520.88231324,0.000228,2]
[330415517,1719357040899,-479.11768676,0.000228,2]
[330415518,1719357040909,-928.90852278,0.000228,2]
[330415519,1719357040940,-1071.09147722,0.000228,2]
[330415520,1719357040950,-2000.0,0.000228,2]
[330415521,1719357040960,-2027.8037,0.000228,2]
[330415522,1719357040969,-488.68810628,0.00022813,2]
[330415523,1719357040978,-2214.04720665,0.00022824,2]
[330415524,1719357040987,-185.14446002,0.00022855,2]
[330415525,1719357040997,-7500.0,0.00022864,2]
[330415526,1719357041006,-185.14446001,0.00022868,2]
[330415527,1719357041015,-800.0,0.0002287,2]
[330415528,1719357041024,-3998.55204261,0.0002287,3]
[330415531,1719357042763,-4193.688803,0.00020272,2]
[330415556,1719357046299,-1718.32124203,0.00020272,2]
[330415557,1719357046309,-209.51942107,0.00020272,2]
[330415558,1719357046319,-3282.4682421,0.0002287,3]
[330415559,1719357046329,-450.0,0.00022872,2]
[330415560,1719357046339,-152.09336201,0.00022874,2]
[330415561,1719357046350,-400.0,0.0002288,6]
[330415562,1719357046362,-14562.0405694,0.0002288,3]
[330415563,1719357046371,-185.14446001,0.00022881,2]
[330415564,1719357046380,-152.09336199,0.00022882,2]
[330415565,1719357046389,-163.19822534,0.0002289,2]
[330415566,1719357046402,-4151.67304172,0.0002289,2]
[330415567,1719357046411,-172.81449373,0.0002289,2]
[330415568,1719357046422,-14848.04091572,0.0002289,2]
[330415569,1719357046431,-152.09336199,0.0002289,2]
[330415570,1719357046442,-1093.26394368,0.0002289,2]
[330415571,1719357046452,-206.44790114,0.0002289,2]
[330415572,1719357046462,-968.43971852,0.0002289,2]
[330415573,1719357046472,-377.60465195,0.0002289,2]
[330415574,1719357046483,-584.59494888,0.0002289,2]
[330415575,1719357046493,-2000.0,0.00022899,2]
[330415576,1719357046503,-2000.0,0.00022899,2]
[330415577,1719357046513,-155.0,0.000229,2]
[330415578,1719357046523,-7281.02028471,0.00022903,3]
[330415579,1719357046532,-21843.0608541,0.00022921,3]
[330415580,1719357046542,-47679.31601294,0.00022931,2]
[330415581,1719357046552,-21843.0608541,0.0002294,3]
[330415582,1719357046561,-245.67646761,0.0002294,2]
[330415583,1719357046572,-21843.0608541,0.00022944,3]
[330415584,1719357046582,-7281.02028471,0.00022945,3]
[330415585,1719357046592,-43686.1217083,0.0002295,3]
[330415586,1719357046602,-31010.2306778,0.0002295,3]
[330415587,1719357046613,-80091.2231318,0.00022954,3]
[330415588,1719357046623,-108535.807372,0.00022954,3]
[330415589,1719357046632,-4390.34953187,0.00022955,2]
[330415590,1719357046641,-31010.2306778,0.0002296,3]
[330415591,1719357046650,-90279.09811618,0.0002296,5]
[330415592,1719357046660,-62020.4613557,0.0002296,3]
[330415593,1719357046669,-166.66666666,0.00022969,2]
[330415594,1719357046679,-15505.1153389,0.0002297,3]
[330415595,1719357046689,-700.0,0.0002297,2]
[330415596,1719357046699,-388.72473332,0.0002297,2]
[330415597,1719357046709,-46515.3460168,0.00022976,3]
[330415598,1719357046719,-108535.807372,0.0002298,3]
[330415599,1719357046729,-108535.807372,0.0002298,3]
[330415600,1719357046739,-256.00974718,0.00022981,2]
[330415601,1719357046749,-335.155729,0.00022986,7]
[330415602,1719357046760,-335.155729,0.00022986,7]
[330415603,1719357046770,-7306.0,0.00022986,2]
[330415604,1719357046779,-26247.0,0.00022986,2]
[330415605,1719357046788,-29073.0,0.00022986,2]
[330415606,1719357046798,-38135.0,0.00022986,2]
[330415607,1719357046807,-150.0,0.00022989,10]
[330415608,1719357046819,-150.0,0.00022989,10]
[330415609,1719357046828,-150.0,0.00022989,10]
[330415610,1719357046838,-150.0,0.00022989,10]
[330415611,1719357046848,-150.0,0.00022989,10]
[330415612,1719357046862,-206.0,0.00022989,2]
[330415613,1719357046872,-206.0,0.00022989,2]
[330415614,1719357046881,-206.0,0.00022989,2]
[330415615,1719357046891,-206.0,0.00022989,2]
[330415616,1719357046900,-206.0,0.00022989,2]
[330415617,1719357046910,-206.0,0.00022989,2]
[330415618,1719357046919,-206.0,0.00022989,2]
[330415619,1719357046928,-206.0,0.00022989,2]
[330415620,1719357046938,-202.0,0.00022989,2]
[330415621,1719357046947,-202.0,0.00022989,2]
[330415622,1719357046956,-202.0,0.00022989,2]
[330415623,1719357046965,-202.0,0.00022989,2]
[330415624,1719357046974,-202.0,0.00022989,2]
[330415625,1719357046984,-202.0,0.00022989,2]
[330415626,1719357046993,-214407.76445051,0.0002299,7]
[330415627,1719357047002,-6437972.11797239,0.0002299,5]
[330415629,1719357048099,-25170.51739305,0.0002299,5]
[330415630,1719357048113,-1682.55984517,0.0002299,5]
[330415631,1719357048124,-12881.71976281,0.0002299,5]
[330415632,1719357048135,-1338.106914,0.0002299,5]
[330415633,1719357048168,-414826.58801414,0.0002299,5]
[330415634,1719357048180,-781.21544599,0.0002299,5]
[330415637,1719357355643,150.1,0.00030784,30]
[330415638,1719357356988,153.931342,0.00030784,30]
[330415639,1719357464784,190.0,0.00030784,30]
[330415640,1719357602644,3511.45,0.00030745,30]
[330415645,1719357895987,6294.0,0.00026,120]
[330415650,1719358232163,-307.97977309,0.00015876,2]
[330415651,1719358232175,-163.06,0.0001704,2]
[330415652,1719358232184,-307.59407386,0.00019416,2]
[330415653,1719358232195,-363.33592614,0.00019416,2]
[330415654,1719358232204,-300.0,0.00019724,2]
[330415655,1719358232213,-84.22677486,0.00019724,2]
[330415656,1719358232225,-65.77322514,0.00019724,2]
[330415657,1719358232234,-1626.32523921,0.00019725,2]
[330415658,1719358232243,-745.05066564,0.00019842,2]
[330415659,1719358232255,-321.47394782,0.00019842,2]
[330415660,1719358232267,-4205.98716292,0.00019842,2]
[330415661,1719358232279,-3685.59822362,0.00019842,2]
[330415662,1719358232288,-499.99,0.00019842,2]
[330415663,1719358232297,-833.24883529,0.00019942,2]
[330415664,1719358232308,-356.75116471,0.00019942,2]
[330415665,1719358232317,-316.68185529,0.00019942,2]
[330415666,1719358232328,-2015.29501095,0.00019942,2]
[330415667,1719358232340,-2253.71037969,0.00019942,2]
[330415668,1719358232351,-2783.28640111,0.00019942,2]
[330415669,1719358232363,-9448.2427,0.00019942,2]
[330415670,1719358232374,-4319.15712903,0.00019942,2]
[330415671,1719358232386,-2138.92514281,0.00019942,2]
[330415672,1719358232412,-1960.66538112,0.00019942,2]
[330415673,1719358232422,-603.426,0.00019942,2]
[330415674,1719358232431,-250.0,0.00021175,2]
[330415675,1719358232441,-600.0,0.0002125,2]
[330415676,1719358232450,-250.0,0.00021268,2]
[330415677,1719358232460,-250.0,0.00021282,2]
[330415678,1719358232470,-167.45,0.00021443,2]
[330415679,1719358232479,-1000.0,0.00021458,2]
[330415680,1719358232488,-500.0,0.00021458,2]
[330415681,1719358232498,-400.0,0.00021462,2]
[330415682,1719358232507,-420.0,0.00021483,2]
[330415683,1719358232516,-740.67,0.00021644,2]
[330415684,1719358232528,-670.93,0.0002168,2]
[330415685,1719358232538,-150.0,0.00021779,2]
[330415686,1719358232549,-152.56,0.00021779,2]
[330415687,1719358232559,-150.0,0.00021779,2]
[330415688,1719358232568,-150.0,0.00021779,2]
[330415689,1719358232577,-150.0,0.00021779,2]
[330415690,1719358232587,-150.0,0.00021779,2]
[330415691,1719358232596,-723.34,0.00021779,2]
[330415693,1719358232605,-71.85719988,0.00021779,2]
[330415695,1719358232617,-78.14280012,0.00021779,2]
[330415697,1719358232627,-150.0,0.00021779,2]
[330415699,1719358232637,-150.0,0.00021779,2]
[330415700,1719358232647,-354.39,0.00021779,2]
[330415701,1719358232656,-527.79,0.00021779,2]
[330415702,1719358232665,-150.0,0.00021779,2]
[330415703,1719358232675,-527.79,0.00021779,2]
[330415704,1719358232685,-150.0,0.00021779,2]
[330415705,1719358232694,-183.96,0.00021779,2]
[330415706,1719358232704,-354.39,0.00021779,2]
[330415707,1719358232713,-463.89,0.00021779,2]
[330415708,1719358232722,-527.79,0.00021779,2]
[330415709,1719358232732,-150.0,0.00021779,2]
[330415710,1719358232742,-150.0,0.00021779,2]
[330415711,1719358232753,-150.0,0.00021779,2]
[330415712,1719358232763,-150.0,0.00021779,2]
[330415713,1719358232779,-150.0,0.00021779,2]
[330415714,1719358232789,-354.39,0.00021779,2]
[330415715,1719358232799,-188.92,0.00021918,2]
[330415716,1719358232808,-1097.22,0.00021918,2]
[330415717,1719358232819,-418.51,0.00022027,2]
[330415718,1719358232830,-232.22429389,0.00022027,2]
[330415719,1719358232842,-186.28570611,0.00022027,2]
[330415720,1719358232853,-418.51,0.00022027,2]
[330415721,1719358232862,-416.71,0.00022027,2]
[330415722,1719358232872,-154.28265748,0.00022074,2]
[330415723,1719358232882,-349.85225998,0.00022105,2]
[330415724,1719358232891,-1071.13302559,0.00022141,2]
[330415725,1719358232900,-159.44211135,0.0002215,2]
[330415726,1719358232909,-423.79,0.00022164,2]
[330415727,1719358232919,-150.0,0.00022164,2]
[330415728,1719358232931,-423.79,0.00022164,2]
[330415729,1719358232940,-196.51,0.00022164,2]
[330415730,1719358232950,-150.0,0.00022164,2]
[330415731,1719358232960,-150.0,0.00022164,2]
[330415732,1719358232970,-423.79,0.00022164,2]
[330415733,1719358232979,-423.79,0.00022164,2]
[330415734,1719358232989,-150.97008216,0.00022234,2]
[330415735,1719358232998,-150.97008216,0.00022242,2]
[330415736,1719358233008,-154.11083982,0.00022251,2]
[330415737,1719358233017,-238.9424307,0.00022255,2]
[330415738,1719358233027,-533.97996105,0.00022263,2]
[330415739,1719358233036,-150.97304623,0.00022263,2]
[330415740,1719358233046,-247.69048818,0.00022294,2]
[330415741,1719358233055,-150.97008216,0.00022322,2]
[330415742,1719358233064,-155.177234,0.00022328,2]
[330415743,1719358233073,-1071.13302559,0.00022334,2]
[330415744,1719358233083,-150.97008216,0.00022348,2]
[330415745,1719358233093,-166.66666666,0.00022393,2]
[330415746,1719358233106,-349.85225998,0.00022393,2]
[330415747,1719358233117,-176.18341068,0.00022393,2]
[330415748,1719358233127,-167.34180347,0.00022394,2]
[330415749,1719358233140,-238.9424307,0.00022423,2]
[330415750,1719358233150,-794.20725918,0.00022432,2]
[330415751,1719358233160,-4054.27713558,0.00022436,2]
[330415752,1719358233169,-1179.20265661,0.00022455,2]
[330415753,1719358233181,-183.95081899,0.0002246,2]
[330415754,1719358233192,-247.69048818,0.00022466,2]
[330415755,1719358233201,-205.711688,0.00022495,2]
[330415756,1719358233212,-154.28265748,0.00022516,2]
[330415757,1719358233221,-164.65,0.000226,2]
[330415758,1719358233231,-164.65,0.000226,2]
[330415759,1719358233241,-150.0,0.000226,2]
[330415760,1719358233251,-423.79,0.000226,2]
[330415761,1719358233260,-164.65,0.000226,2]
[330415762,1719358233270,-150.0,0.000226,2]
[330415763,1719358233280,-423.79,0.000226,2]
[330415764,1719358233289,-150.0,0.000226,2]
[330415765,1719358233299,-527.79,0.000226,2]
[330415766,1719358233308,-423.79,0.000226,2]
[330415767,1719358233318,-150.0,0.000226,2]
[330415768,1719358233327,-164.65,0.000226,2]
[330415769,1719358233337,-150.0,0.000226,2]
[330415770,1719358233346,-354.39,0.000226,2]
[330415771,1719358233355,-423.79,0.000226,2]
[330415772,1719358233365,-150.0,0.000226,2]
[330415773,1719358233375,-527.79,0.000226,2]
[330415774,1719358233386,-286.18,0.000226,2]
[330415775,1719358233395,-354.39,0.000226,2]
[330415776,1719358233404,-150.0,0.000226,2]
[330415777,1719358233414,-150.0,0.000226,2]
[330415778,1719358233423,-164.65,0.000226,2]
[330415779,1719358233432,-527.79,0.000226,2]
[330415780,1719358233440,-150.0,0.000226,2]
[330415781,1719358233450,-354.39,0.000226,2]
[330415782,1719358233460,-164.65,0.000226,2]
[330415783,1719358233470,-150.0,0.000226,2]
[330415784,1719358233481,-150.0,0.000226,2]
[330415785,1719358233490,-423.79,0.000226,2]
[330415786,1719358233499,-423.79,0.000226,2]
[330415787,1719358233509,-150.0,0.000226,2]
[330415788,1719358233518,-150.0,0.000226,2]
[330415789,1719358233528,-527.79,0.000226,2]
[330415790,1719358233537,-164.65,0.000226,2]
[330415791,1719358233547,-150.0,0.000226,2]
[330415792,1719358233556,-354.39,0.000226,2]
[330415793,1719358233566,-164.65,0.000226,2]
[330415794,1719358233575,-354.39,0.000226,2]
[330415795,1719358233585,-527.79,0.000226,2]
[330415796,1719358233595,-150.0,0.000226,2]
[330415797,1719358233604,-150.0,0.000226,2]
[330415798,1719358233614,-423.79,0.000226,2]
[330415799,1719358233624,-590.81,0.000226,2]
[330415800,1719358233635,-527.79,0.000226,2]
[330415801,1719358233644,-150.0,0.000226,2]
[330415802,1719358233654,-354.39,0.000226,2]
[330415803,1719358233664,-150.0,0.000226,2]
[330415804,1719358233678,-164.65,0.000226,2]
[330415805,1719358233687,-423.79,0.000226,2]
[330415806,1719358233697,-527.79,0.000226,2]
[330415807,1719358233708,-354.39,0.000226,2]
[330415808,1719358233718,-164.65,0.000226,2]
[330415809,1719358233728,-150.0,0.000226,2]
[330415810,1719358233738,-323.34,0.000226,2]
[330415811,1719358233748,-527.79,0.000226,2]
[330415812,1719358233758,-354.39,0.000226,2]
[330415813,1719358233768,-423.79,0.000226,2]
[330415814,1719358233781,-150.0,0.000226,2]
[330415815,1719358233791,-164.65,0.000226,2]
[330415816,1719358233801,-527.79,0.000226,2]
[330415817,1719358233811,-150.0,0.000226,2]
[330415818,1719358233822,-354.39,0.000226,2]
[330415819,1719358233832,-164.65,0.000226,2]
[330415820,1719358233842,-423.79,0.000226,2]
[330415821,1719358233851,-423.79,0.000226,2]
[330415822,1719358233861,-156.91,0.000226,2]
[330415823,1719358233871,-150.0,0.000226,2]
[330415824,1719358233880,-354.39,0.000226,2]
[330415825,1719358233892,-164.65,0.000226,2]
[330415826,1719358233901,-164.65,0.000226,2]
[330415827,1719358233910,-354.39,0.000226,2]
[330415828,1719358233919,-309.86,0.000226,2]
[330415829,1719358233928,-24.65056473,0.000226,2]
[330415830,1719358233942,-329.73943527,0.000226,2]
[330415831,1719358233951,-708.48,0.000226,2]
[330415832,1719358233961,-345.96,0.000226,2]
[330415833,1719358233971,-1579.79346687,0.00022642,2]
[330415834,1719358233981,-1071.13302559,0.00022709,2]
[330415835,1719358233991,-166.66666666,0.0002278,2]
[330415836,1719358234001,-983.93754933,0.0002278,2]
[330415837,1719358234011,-1254.3721,0.0002279,2]
[330415838,1719358234021,-1000.0,0.0002279,2]
[330415839,1719358234030,-983.93754931,0.00022792,2]
[330415840,1719358234040,-189.31426503,0.000228,2]
[330415841,1719358234049,-983.93754931,0.00022804,2]
[330415842,1719358234059,-983.93754931,0.00022817,2]
[330415843,1719358234068,-1179.20265661,0.00022828,2]
[330415844,1719358234078,-983.93754931,0.00022829,2]
[330415845,1719358234087,-983.93754931,0.00022841,2]
[330415846,1719358234100,-983.93754931,0.00022853,2]
[330415847,1719358234112,-983.93754931,0.00022866,2]
[330415848,1719358234121,-185.14446001,0.00022871,2]
[330415849,1719358234131,-983.93754931,0.00022878,2]
[330415850,1719358234143,-3023.35359891,0.00022879,2]
[330415851,1719358234152,-223.41557439,0.0002288,3]
[330415852,1719358234164,-621.77146932,0.0002288,3]
[330415853,1719358234176,-883.97785601,0.0002288,3]
[330415854,1719358234188,-450.25,0.0002288,3]
[330415855,1719358234200,-1314.32854672,0.0002288,3]
[330415856,1719358234211,-1301.98222112,0.0002288,3]
[330415857,1719358234223,-2208.4,0.0002288,3]
[330415858,1719358234235,-866.7628267,0.0002288,3]
[330415859,1719358234294,-4125.0000005,0.0002288,3]
[330415860,1719358237884,-194.86498296,0.00022785,2]
[330415862,1719358237894,-3558.25409845,0.0002288,3]
[330415864,1719358237906,-1703.41591,0.0002288,3]
[330415865,1719358238128,-22281.08576953,0.0002288,3]
[330415866,1719358238142,-15909.06140026,0.0002288,3]
[330415867,1719358238154,-437.7186954,0.0002288,3]
[330415868,1719358238166,-11287.8595486,0.0002288,3]
[330415869,1719358238179,-165.52804219,0.00022885,2]
[330415870,1719358238191,-165.52804219,0.00022887,2]
[330415871,1719358238200,-165.52804219,0.00022888,2]
[330415872,1719358238210,-19176.70572105,0.0002289,2]
[330415873,1719358238221,-8230.48366356,0.0002289,2]
[330415874,1719358238233,-4343.464663,0.0002289,2]
[330415875,1719358238245,-670.31329616,0.0002289,2]
[330415876,1719358238256,-1754.60756729,0.0002289,2]
[330415877,1719358238268,-2251.111404,0.0002289,2]
[330415878,1719358238279,-5114.17852271,0.0002289,2]
[330415879,1719358238291,-344.85876463,0.0002289,2]
[330415880,1719358238302,-675.40068488,0.0002289,2]
[330415881,1719358238360,-1482.26936924,0.0002289,2]
[330415883,1719358238372,-405.79384232,0.0002289,2]
[330415885,1719358238385,-308.66866659,0.0002289,2]
[330415886,1719358238397,-1288.14338783,0.0002289,2]
[330415887,1719358238409,-1078.0799953,0.0002289,2]
[330415888,1719358238421,-1095.36771121,0.0002289,2]
[330415889,1719358238433,-1840.7599115,0.0002289,2]
[330415890,1719358238445,-14270.66182843,0.0002289,2]
[330415891,1719358238456,-1847.439928,0.0002289,2]
[330415892,1719358238468,-7020.34704115,0.0002289,2]
[330415893,1719358238480,-1941.56591577,0.0002289,2]
[330415895,1719358240077,-10000.0,0.0002289,2]
[330415896,1719358240090,-343.83862905,0.0002289,2]
[330415897,1719358240297,-2095.4278427,0.0002289,2]
[330415898,1719358240309,-340.0090999,0.0002289,2]
[330415899,1719358240321,-953.445,0.0002289,2]
[330415900,1719358240334,-82684.90872429,0.0002289,2]
[330415901,1719358240345,-165.52804219,0.0002289,2]
[330415902,1719358240355,-983.93754931,0.0002289,2]
[330415903,1719358240365,-189.31426502,0.0002289,2]
[330415904,1719358240375,-968.43971852,0.0002289,2]
[330415905,1719358240387,-391.0334664,0.0002289,2]
[330415906,1719358240397,-377.60465195,0.0002289,2]
[330415907,1719358240408,-893.08502989,0.0002289,2]
[330415908,1719358240419,-81390.22323628,0.0002289,2]
[330415909,1719358240432,-568.22236691,0.0002289,2]
[330415910,1719358240444,-263.24364889,0.0002289,2]
[330415911,1719358240456,-79265.33114792,0.0002289,2]
[330415912,1719358240466,-155.0,0.00022899,2]
[330415913,1719358240476,-490.0,0.000229,5]
[330415914,1719358240485,-526.0,0.00022942,2]
[330415915,1719358240495,-242.0302607,0.00022959,2]
[330415916,1719358240506,-338.89402138,0.00022959,2]
[330415917,1719358240515,-10334.3513718,0.0002296,3]
[330415918,1719358240526,-150.5,0.0002296,30]
[330415919,1719358240535,-159.5,0.0002296,30]
[330415920,1719358240546,-245.67646761,0.0002296,2]
[330415921,1719358240556,-67173.283917,0.0002296,3]
[330415922,1719358240566,-12898.0605474,0.0002296,3]
[330415923,1719358240576,-461.29191155,0.00022967,2]
[330415924,1719358240586,-314.5578448,0.00022967,2]
[330415925,1719358240596,-5167.17568592,0.00022967,3]
[330415926,1719358240606,-438.1115069,0.00022968,2]
[330415927,1719358240616,-720.52768086,0.00022968,2]
[330415928,1719358240626,-346.03148912,0.00022968,2]
[330415929,1719358240640,-15501.5270578,0.00022968,3]
[330415930,1719358240653,-25796.1210948,0.00022968,3]
[330415931,1719358240664,-155.0,0.00022969,2]
[330415932,1719358240674,-155.0,0.00022969,2]
[330415933,1719358240685,-325.99545828,0.00022969,2]
[330415934,1719358240695,-174.77363135,0.00022969,2]
[330415935,1719358240705,-155.0,0.00022969,2]
[330415936,1719358240715,-202.39426643,0.00022969,2]
[330415937,1719358240726,-1263.08088063,0.00022969,2]
[330415938,1719358240736,-31003.0541155,0.0002297,3]
[330415940,1719358240746,-25796.1210948,0.0002297,3]
[330415941,1719358240756,-150.5,0.0002297,30]
[330415943,1719358240765,-150.5,0.0002297,30]
[330415945,1719358240775,-700.0,0.0002297,2]
[330415947,1719358240786,-155.0,0.0002297,2]
[330415949,1719358240796,-20668.7027437,0.0002297,3]
[330415951,1719358240806,-38694.1816423,0.0002297,3]
[330415953,1719358240815,-482.87871356,0.0002297,2]
[330415955,1719358240825,-2016.42329016,0.0002297,2]
[330415957,1719358240834,-166.66666666,0.00022971,2]
[330415959,1719358240843,-672.35618026,0.00022977,2]
[330415960,1719358240852,-38694.1816423,0.00022978,3]
[330415962,1719358240862,-2004.4104095,0.00022978,2]
[330415964,1719358240872,-12898.0605474,0.00022979,3]
[330415966,1719358240881,-1251.85328804,0.00022979,2]
[330415968,1719358240894,-1227.45301785,0.0002298,3]
[330415970,1719358240935,-1048.0,0.0002298,3]
[330415971,1719358240947,-1009.71667059,0.0002298,3]
[330415972,1719358240959,-1899.99999999,0.0002298,3]
[330415973,1719358241086,-6575.58471333,0.0002298,3]
[330416026,1719358243951,-172.81449373,0.0002279,2]
[330416028,1719358243961,-194.86498296,0.00022838,2]
[330416030,1719358243970,-155.0,0.00022967,2]
[330416032,1719358243981,-9871.57122128,0.0002298,3]
[330416034,1719358243993,-2969.575707,0.0002298,3]
[330416035,1719358244243,-1268.90810758,0.0002298,3]
[330416036,1719358244255,-3977.57470231,0.0002298,3]
[330416044,1719358248845,-194.86498296,0.0002289,2]
[330416045,1719358248855,-389.86,0.0002297,3]
[330416046,1719358248864,-2687.63014122,0.0002298,3]
[330416047,1719358248875,-949.65,0.0002298,3]
[330416048,1719358249142,-2277.36340749,0.00019177,2]
[330416049,1719358249152,-1422.63659251,0.0002298,3]
[330416050,1719358249163,-6186.91674522,0.0002298,3]
[330416051,1719358249175,-10497.02457082,0.0002298,3]
[330416052,1719358249185,-150.5,0.0002298,30]
[330416053,1719358249195,-150.5,0.0002298,30]
[330416054,1719358249204,-4240.50848676,0.0002298,3]
[330416055,1719358249215,-459.4508895,0.0002298,3]
[330416056,1719358249229,-17304.56,0.0002298,3]
[330416057,1719358249242,-264.208,0.0002298,3]
[330416058,1719358249254,-700.0,0.0002298,3]
[330416059,1719358249265,-964.57648047,0.0002298,3]
[330416060,1719358257460,150.1,0.00030756,30]
[330416074,1719358630159,41664.9566834,0.00030767,30]
[330416077,1719358701060,5100.0,0.00030767,34]
[330416082,1719359136784,1532.17423759,0.00030793,30]
[330416084,1719359352793,1192.39,0.00030812,30]
[330416086,1719359396603,1588.9,0.00030812,30]
[330416087,1719359407087,168.44,0.00015242,2]
[330416088,1719359412660,1208.00350627,0.00030812,30]
[330416104,1719359432097,-337.21932,0.00018584,2]
[330416105,1719359432110,-353.22068,0.00018584,2]
[330416106,1719359432119,-300.0,0.00018786,2]
[330416107,1719359432128,-240.66009685,0.00018787,2]
[330416108,1719359432139,-463.7839458,0.00018787,2]
[330416109,1719359432150,-291.44373864,0.00018787,2]
[330416110,1719359432170,-2800.45491871,0.00018787,2]
[330416111,1719359432179,-38839.19291375,0.00018887,3]
[330416112,1719359432189,-167.45,0.00019157,2]
[330416113,1719359432198,-3036.65,0.00019157,2]
[330416114,1719359432207,-1594.78164641,0.00019802,2]
[330416115,1719359432216,-4474.3,0.00019812,2]
[330416116,1719359432225,-4474.3,0.00019818,2]
[330416117,1719359432234,-4474.3,0.00019823,2]
[330416118,1719359432243,-4474.3,0.00019828,2]
[330416119,1719359432252,-4474.3,0.00019833,2]
[330416120,1719359432261,-4474.3,0.00019838,2]
[330416121,1719359432271,-4474.3,0.00019844,2]
[330416122,1719359432280,-4474.3,0.00019849,2]
[330416123,1719359432289,-4474.3,0.00019854,2]
[330416124,1719359432297,-4474.3,0.00019859,2]
[330416125,1719359432306,-4474.3,0.00019864,2]
[330416126,1719359432315,-4474.3,0.0001987,2]
[330416128,1719359432324,-4474.3,0.00019875,2]
[330416129,1719359432334,-4474.3,0.0001988,2]
[330416130,1719359432344,-4474.3,0.00019885,2]
[330416131,1719359432355,-4474.3,0.0001989,2]
[330416132,1719359432364,-4474.3,0.00019896,2]
[330416133,1719359432373,-4474.3,0.00019901,2]
[330416134,1719359432382,-526.00073857,0.00019905,2]
[330416135,1719359432391,-19444.75,0.00019906,2]
[330416136,1719359432400,-4474.3,0.00019906,2]
[330416137,1719359432410,-4474.3,0.00019911,2]
[330416138,1719359432420,-3101.78,0.00020295,2]
[330416139,1719359432429,-499.99,0.00020295,2]
[330416140,1719359432438,-299.99,0.00020295,7]